[Event "FIDE WSCC 65 2022"]
[Site "Assisi"]
[Date "2022.11.18"]
[Round "4.5"]
[White "Hebert, Jean"]
[Black "Shaffer, Alexander"]
[Result "1-0"]
[ECO "D78"]
[WhiteElo "2333"]
[BlackElo "1688"]
[Annotator "TA"]
[PlyCount "79"]
[EventDate "2022.11.14"]
[EventType "swiss"]
[EventCountry "ITA"]
[SourceTitle "playchess.com"]
[Source "ChessBase"]
[SourceQuality "1"]
[TimeControl "40/5400+30:1800+30"]

{[%evp 18,79,27,29,41,44,64,60,64,51,50,50,47,42,80,55,66,57,67,63,85,72,73,71,73,63,41,53,70,25,41,8,20,12,157,150,150,85,124,124,120,133,111,127,135,124,168,178,185,175,207,196,196,196,365,366,470,430,514,412,438,406,521,366]} 1. Nf3 {[%emt 0:00:30]} d5 {[%emt 0:00:30]} 2. g3 {[%emt 0:00:30]} Nf6 {[%emt 0:00:13]} 3. Bg2 {[%emt 0:00:07]} g6 {[%emt 0:01:47]} 4. O-O {[%emt 0:00:26]} Bg7 {[%emt 0:00:08]} 5. c4 {[%emt 0:02:53]} c6 {[%emt 0:00:43]} 6. d4 {[%emt 0:00:41]} O-O {[%emt 0:00:18]} 7. Qb3 {[%emt 0:06:41]} dxc4 {[%emt 0:03:41]} 8. Qxc4 {[%emt 0:00:07]} Nbd7 {[%emt 0:01:50] 8...b5 is the recent fashion.} 9. Nc3 {[%emt 0:00:58]} Nb6 {[%emt 0:02:08]} 10. Qd3 {[%emt 0:00:43]} Be6 {[%emt 0:02:26] D78: Fianchetto Grünfeld: 6 0-0 c6.} 11. Rd1 {[%emt 0:01:15]} Qc8 {[%emt 0:12:08]} 12. e4 {[%emt 0:06:51]} Rd8 {[%emt 0:00:44] White is slightly better.} 13. Qf1 {[%emt 0:06:07]} Bc4 {[%emt 0:05:15]} 14. Qe1 {[%emt 0:00:39] [#]} Be6 $146 {[%emt 0:03:47]} ({Predecessor:} 14... Nfd7 15. b3 Ba6 16. Bg5 Re8 17. Rac1 e5 18. d5 h6 19. Be3 Qd8 20. dxc6 bxc6 {½-½ (46) Balogh,T (2350)-Vlcek,S (2286) Slovakia 2010}) 15. b3 {[%emt 0:05:56]} Bh3 {[%emt 0:01:29]} 16. Ba3 {[%emt 0:02:25]} Bxg2 {[%emt 0:00:18]} 17. Kxg2 {[%emt 0:00:06]} e6 {[%emt 0:01:48]} 18. Rac1 {[%emt 0:02:47]} Qd7 {[%emt 0:01:33]} 19. h3 {[%emt 0:03:58]} Qe8 {[%emt 0:01:12]} 20. Qe2 {[%emt 0:02:16]} a5 {[%emt 0:03:06]} 21. e5 {[%emt 0:04:37]} Nfd5 {[%emt 0:00:55]} 22. Ne4 {[%emt 0:00:40]} a4 {[%emt 0:01:45]} 23. Bc5 {[%emt 0:05:30]} Nc8 {[%emt 0:02:42]} 24. Qb2 {[%emt 0:04:41]} axb3 {[%emt 0:06:15][%cal Od5e3] ...Ne3+! is the strong threat.} 25. Qxb3 {[%emt 0:03:36]} Nce7 {[%emt 0:03:29] [#]} (25... Qd7 $11) 26. Nd6 $1 $16 {[%emt 0:05:03] White has more active pieces.} ({Don't go for} 26. Qxb7 $2 Rdb8 27. Rb1 Qd8 $19) 26... Qd7 {[%emt 0:00:20][%cal Ob7b6]} 27. Qxb7 {[%emt 0:03:14]} (27. Nxb7 $142 Rdb8 28. Rb1) 27... Rxa2 {[%emt 0:00:34] Strongly threatening ...Qxb7.} 28. Qxd7 {[%emt 0:01:22]} Rxd7 {[%emt 0:00:08]} 29. Ra1 {[%emt 0:00:46]} Rxa1 {[%emt 0:02:26]} 30. Rxa1 {[%emt 0:00:08] Hoping for Ra8+.} Rd8 {[%emt 0:00:48] Inhibits Ra8.} 31. Ng5 $36 {[%emt 0:01:29][%mdl 2048] White is on the roll.} Rf8 {[%emt 0:04:53]} 32. Ra7 {[%emt 0:01:20]} h6 {[%emt 0:01:29]} 33. Nge4 {[%emt 0:03:11]} Nc8 {[%emt 0:03:11]} 34. Nxc8 {[%emt 0:04:52]} Rxc8 {[%emt 0:00:11] [#]} 35. Rxf7 $1 {[%emt 0:00:21]} Rb8 $2 {[%emt 0:02:42]} (35... Ne3+ $2 36. fxe3 Kxf7 37. Nd6+ Ke7 38. Nxc8+ $18) (35... Kxf7 36. Nd6+ Ke7 37. Nxc8+ Kd7) 36. Ra7 $18 {[%emt 0:01:06]} g5 {[%emt 0:02:22]} 37. Bd6 {[%emt 0:03:51]} Re8 {[%emt 0:01:26]} 38. Ra6 {[%emt 0:01:21]} Rc8 {[%emt 0:00:25]} 39. Nc5 {[%emt 0:00:36]} Nb4 {[%emt 0:01:44]} 40. Ra4 {[%emt 0:16:50] Weighted Error Value: White=0.11 (very precise) /Black=0.35} 1-0

[Event "FIDE WSCC 65 2022"]
[Site "Assisi"]
[Date "2022.11.18"]
[Round "4.6"]
[White "Strutinskaia, Galina"]
[Black "Fernandez Garcia, Jose Luis"]
[Result "0-1"]
[ECO "A32"]
[WhiteElo "2137"]
[BlackElo "2358"]
[Annotator "TA"]
[PlyCount "96"]
[EventDate "2022.11.14"]
[EventType "swiss"]
[EventCountry "ITA"]
[SourceTitle "playchess.com"]
[Source "ChessBase"]
[SourceQuality "1"]
[TimeControl "40/5400+30:1800+30"]

{[%evp 13,96,4,0,0,31,15,22,19,24,-7,0,-2,0,0,0,0,0,0,0,0,18,22,19,11,21,8,15,0,0,-15,0,-19,-20,-131,-136,-165,-112,-106,-67,-72,-69,-75,-71,-74,-68,-68,-68,-68,-68,-69,-70,-152,-151,-151,-151,-317,-302,-417,-417,-415,-334,-466,-421,-422,-354,-670,-585,-927,-858,-1196,-1019,-1482,-914,-5085,-462,-29974,-5100,-29977,-29978,-29977,-29979,-29978,-29979,-29977,-29977]} 1. d4 {[%emt 0:00:01]} Nf6 {[%emt 0:01:44][%cal Bg8f6,Bf6d5,Bd5b4][%mdl 32]} 2. Nf3 {[%emt 0:00:08]} e6 {[%emt 0:01:07]} 3. c4 {[%emt 0:00:37]} c5 {[%emt 0:00:08]} 4. Nc3 {[%emt 0:01:14]} cxd4 {[%emt 0:00:15]} 5. Nxd4 {[%emt 0:00:07]} d5 {[%emt 0:00:09]} 6. cxd5 {[%emt 0:01:02]} Nxd5 {[%emt 0:00:24]} 7. Bd2 {[%emt 0:03:52]} Be7 $1 {[%emt 0:00:50] The main line 7...Be7 scores better than 7...Bc5.} 8. e4 {[%emt 0:00:20] A32: Symmetrical English: 2 Nf3 Nf6 3 d4 cxd4 4 Nxd4 e6.} Nb4 {[%emt 0:04:38]} 9. Be3 {[%emt 0:10:03]} O-O {[%emt 0:03:46]} 10. a3 {[%emt 0:01:32] The position is equal.} N4c6 {[%emt 0:00:13]} 11. Bc4 {[%emt 0:03:19] [#]} Nxd4 $146 {[%emt 0:00:12]} ({Predecessor:} 11... Bf6 12. Nce2 Bd7 13. O-O Ne5 14. Ba2 Ng4 15. Bd2 Nc6 16. Bc3 Qb6 17. Qd2 Rad8 {½-½ (35) Papin,Y (2034)-Shepitko,I (2158) Tosno 2009}) 12. Qxd4 {[%emt 0:00:42]} Nc6 {[%emt 0:00:24]} 13. Qxd8 {[%emt 0:03:11]} Rxd8 {[%emt 0:00:27]} 14. O-O {[%emt 0:00:39]} Bd7 {[%emt 0:12:25]} 15. Rfd1 {[%emt 0:03:06]} Bf6 {[%emt 0:09:03]} 16. Rac1 {[%emt 0:00:36]} Be8 {[%emt 0:00:21]} 17. Rxd8 {[%emt 0:02:53]} Rxd8 {[%emt 0:00:43]} 18. f4 {[%emt 0:00:14]} Bd4 {[%emt 0:10:32]} 19. Kf2 {[%emt 0:00:13]} Kf8 {[%emt 0:00:22]} 20. Bxd4 {[%emt 0:08:00]} Rxd4 {[%emt 0:01:52]} 21. Be2 {[%emt 0:07:19]} Rd2 {[%emt 0:02:05]} 22. b4 {[%emt 0:00:26]} Rb2 {[%emt 0:01:27]} 23. Ke1 {[%emt 0:14:06]} (23. Ke3 $11) 23... Nd4 $17 {[%emt 0:02:13]} 24. Kd1 {[%emt 0:02:38]} Nxe2 {[%emt 0:09:43]} ({Black should play} 24... a6 $19 25. Bf1 Bc6) 25. Nxe2 $19 {[%emt 0:00:06][%mdl 4096] Endgame KRB-KRN} Ba4+ {[%emt 0:00:04]} 26. Ke1 {[%emt 0:00:14]} Bc6 {[%emt 0:00:05]} 27. e5 {[%emt 0:02:07]} Bxg2 {[%emt 0:20:06] Black is more active.} 28. Rc8+ {[%emt 0:00:40]} Ke7 {[%emt 0:00:01]} 29. Rc7+ {[%emt 0:00:11]} Ke8 {[%emt 0:00:07]} 30. Nd4 $1 {[%emt 0:00:23]} a6 $1 {[%emt 0:03:06] Against Nb5} 31. f5 {[%emt 0:00:27]} Bd5 {[%emt 0:00:52]} 32. h4 {[%emt 0:00:41]} (32. fxe6 $15 fxe6 33. Ne2) 32... Rh2 $17 {[%emt 0:03:37]} 33. fxe6 {[%emt 0:01:41]} fxe6 {[%emt 0:00:16]} 34. b5 $2 {[%emt 0:00:13] Now White is beyond hope.} (34. Ne2 $17 {was called for.}) 34... Rxh4 $19 {[%emt 0:00:14]} 35. bxa6 {[%emt 0:00:14]} Rxd4 {[%emt 0:02:51]} 36. axb7 {[%emt 0:00:30][%cal Rb7b8] KRB-KR} Re4+ {[%emt 0:00:24]} 37. Kd2 {[%emt 0:02:55][%cal Rb7b8] [#]} Bxb7 {[%emt 0:00:43]} 38. Rxb7 {[%emt 0:00:02] KR-KR} Kf8 {[%emt 0:00:07]} 39. Kc3 $2 {[%emt 0:00:14]} (39. Rb8+ Kf7 40. Rh8) 39... h5 {[%emt 0:01:00][%cal Bh7h5,Bh5h4][%mdl 32]} 40. Kb3 {[%emt 0:01:37]} h4 {[%emt 0:00:22] ...h3 is the strong threat.} 41. Rc7 {[%emt 0:30:19]} g5 {[%emt 0:33:27][%cal Bg7g5,Bg5g4,Bg4g3][%mdl 32]} 42. a4 {[%emt 0:00:15]} Rxe5 {[%emt 0:02:35]} 43. Kb4 {[%emt 0:00:11]} Re1 {[%emt 0:00:14]} (43... h3 $142 {( -> ...Re4+)} 44. Kc3 g4) 44. a5 {[%emt 0:00:08] [#]} (44. Rh7 $19 e5 45. a5 Rb1+ 46. Kc3) 44... Rb1+ {[%emt 0:00:16]} (44... h3 $142 45. Rc2 g4 46. Rh2 g3 47. Rxh3 g2 48. Rg3 g1=Q 49. Rxg1 Rxg1 50. Kc4 Ra1 51. a6 Rxa6 52. Kd4 Ra7 53. Ke3 e5 54. Kf3 Re7 55. Ke4 Ke8 56. Ke3 e4 57. Ke2 e3 58. Kd3 e2 59. Kd4 e1=Q 60. Kc4 Kf7 61. Kd3 Rc7 62. Kd4 Qc3+ 63. Ke4 Rc4+ 64. Kf5 Qf6#) 45. Ka4 {[%emt 0:00:23]} h3 {[%emt 0:00:16] Black mates.} 46. Rh7 {[%emt 0:00:11]} g4 {[%emt 0:00:21]} 47. a6 {[%emt 0:00:06]} g3 {[%emt 0:00:40]} 48. Rxh3 {[%emt 0:00:07]} Ra1+ {[%emt 0:07:43] Weighted Error Value: White=1.05/Black=0.45} 0-1

[Event "FIDE WSCC 65 2022"]
[Site "Assisi"]
[Date "2022.11.18"]
[Round "4.7"]
[White "Vaisser, Anatoly"]
[Black "Luciani, Carlo"]
[Result "1/2-1/2"]
[ECO "A69"]
[WhiteElo "2463"]
[BlackElo "2187"]
[Annotator "TA"]
[PlyCount "63"]
[EventDate "2022.11.14"]
[EventType "swiss"]
[EventCountry "ITA"]
[SourceTitle "playchess.com"]
[Source "ChessBase"]
[SourceQuality "1"]
[TimeControl "40/5400+30:1800+30"]

{[%evp 21,63,3,30,0,0,0,0,0,0,-18,-19,-84,-77,-77,-77,-81,-91,-77,-92,-92,-77,-79,-81,-79,-81,-80,-80,-124,-81,-81,-81,-81,-70,-76,-28,-72,-52,-62,-28,-93,-28,-37,0,-121]} 1. d4 {[%emt 0:00:30]} Nf6 {[%emt 0:00:30]} 2. c4 {[%emt 0:00:30]} g6 {[%emt 0:00:30]} 3. Nc3 {[%emt 0:00:30]} Bg7 {[%emt 0:00:30]} 4. e4 {[%emt 0:00:30]} d6 {[%emt 0:00:30]} 5. f4 {[%emt 0:00:03]} c5 {[%emt 0:00:00]} 6. d5 {[%emt 0:00:00]} O-O {[%emt 0:00:00]} 7. Nf3 {[%emt 0:00:00]} a6 {[%emt 0:00:00]} 8. a4 {[%emt 0:00:00]} e6 {[%emt 0:00:00]} 9. Be2 {[%emt 0:00:00]} exd5 {[%emt 0:00:00]} 10. cxd5 {[%emt 0:00:09]} Re8 {[%emt 0:00:00]} 11. Nd2 {[%emt 0:01:43]} Ng4 {[%emt 0:00:00] [#] aiming for ...Ne3.} 12. Bxg4 {[%emt 0:00:57] A69: Modern Benoni: Four Pawns Attack with 9...Re8.} (12. Nc4 {seems wilder.} h5 13. Qd3 Bd4 14. Bxg4 Bxg4 15. Be3) 12... Qh4+ {[%emt 0:00:03]} 13. g3 {[%emt 0:00:06]} Qxg4 {[%emt 0:00:13]} 14. Qxg4 {[%emt 0:00:33]} Bxg4 {[%emt 0:00:10]} 15. Kf2 {[%emt 0:03:27]} Nd7 {[%emt 0:01:27][%cal Bb8d7,Bd7f6,Bf6e4][%mdl 32]} 16. Re1 {[%emt 0:18:44]} (16. h3 $11 Bd4+ 17. Kg2 Bxc3 18. bxc3) 16... Bd4+ $17 {[%emt 0:09:19] A strong pair of Bishops.} 17. Kg2 {[%emt 0:06:28]} Nf6 {[%emt 0:00:43]} 18. h3 {[%emt 0:12:50] [#]} Bf5 $146 {[%emt 0:05:53]} ({Predecessor:} 18... Bd7 19. g4 Bxc3 20. bxc3 Nxd5 21. Nc4 Nxc3 22. Nxd6 Re6 23. e5 Bxa4 24. f5 Bc6+ {½-½ (59) Urban,V-Rehurek,L Brno 1997}) 19. g4 {[%emt 0:00:37]} Bxc3 {[%emt 0:01:01]} 20. bxc3 {[%emt 0:00:29]} Bxe4+ {[%emt 0:00:36]} 21. Nxe4 {[%emt 0:00:12]} Rxe4 {[%emt 0:05:57]} 22. Rxe4 {[%emt 0:00:12]} Nxe4 {[%emt 0:00:07][%mdl 4096] Endgame KRB-KRN} 23. c4 {[%emt 0:00:10]} f5 {[%emt 0:00:54]} 24. Rb1 {[%emt 0:04:12]} Rb8 {[%emt 0:02:04]} 25. a5 {[%emt 0:00:39]} Kf7 {[%emt 0:00:30]} 26. Kf3 {[%emt 0:01:42]} Ke7 {[%emt 0:05:04]} 27. Rb2 {[%emt 0:12:17]} Nf6 {[%emt 0:05:38]} ({Black should try} 27... Kd7 $17) 28. Re2+ {[%emt 0:02:09]} Kf7 {[%emt 0:05:13] Strongly threatening ...b5.} 29. Rb2 {[%emt 0:07:54]} Nd7 {[%emt 0:06:13]} 30. Re2 {[%emt 0:02:04] [#]} (30. g5 $11) 30... Re8 {[%emt 0:07:32]} (30... b6 $1 $17 {[%cal Rb6a5]} 31. Bd2 Nf6 32. axb6 Rxb6) 31. Rb2 $11 {[%emt 0:00:24]} Rb8 {[%emt 0:00:16]} 32. Ke3 {[%emt 0:26:29] Weighted Error Value: White=0.18 (very precise) /Black=0.17 (very precise)} (32. Re2 $1 $11) 1/2-1/2

[Event "FIDE WSCC 65 2022"]
[Site "Assisi"]
[Date "2022.11.18"]
[Round "4.8"]
[White "Pomes Marcet, Joan"]
[Black "Legky, Nikolay A"]
[Result "1/2-1/2"]
[ECO "E40"]
[WhiteElo "2197"]
[BlackElo "2350"]
[Annotator "TA"]
[PlyCount "117"]
[EventDate "2022.11.14"]
[EventType "swiss"]
[EventCountry "ITA"]
[SourceTitle "playchess.com"]
[Source "ChessBase"]
[SourceQuality "1"]
[TimeControl "40/5400+30:1800+30"]

{[%evp 9,117,-31,-30,-29,-5,0,13,13,20,13,32,35,45,45,45,45,44,41,52,31,72,54,64,62,97,60,67,47,41,12,54,66,45,0,52,55,48,0,0,0,0,0,0,0,0,0,0,0,0,0,0,-21,0,0,0,0,0,-20,0,0,0,0,0,0,0,0,0,0,0,0,0,0,0,0,0,0,0,0,0,0,21,0,0,0,0,0,0,0,166,0,0,0,16,0,31,0,0,0,0,0,0,0,0,0,0,0,0,0,0,0]} 1. d4 {[%emt 0:00:30]} Nf6 {[%emt 0:00:10]} 2. c4 {[%emt 0:00:00]} e6 {[%emt 0:00:04]} 3. Nc3 {[%emt 0:00:00]} Bb4 {[%emt 0:00:06]} 4. e3 {[%emt 0:00:07]} d5 {[%emt 0:00:05]} 5. Nge2 {[%emt 0:00:22]} dxc4 {[%emt 0:00:37]} 6. a3 {[%emt 0:00:22] E40: Nimzo-Indian: Rubinstein (4 e3): Unusual Black 4th moves.} Be7 {[%emt 0:03:52]} 7. Ng3 {[%emt 0:03:49] [#]} a6 $146 {[%emt 0:01:48]} ({Predecessor:} 7... c5 8. Bxc4 O-O 9. dxc5 Qxd1+ 10. Kxd1 Bxc5 11. b4 Be7 12. Bb2 a5 13. b5 Nbd7 14. Ke2 Nb6 15. Bd3 a4 16. Rhc1 Bd7 17. Nce4 Nxe4 18. Nxe4 {1-0 (41) Suleymanli,A (2512)-Vrolijk,L (2480) Chess.com INT 2020}) 8. Bxc4 {[%emt 0:01:59]} b5 {[%emt 0:00:33]} 9. Bd3 {[%emt 0:01:50]} Nbd7 {[%emt 0:01:05]} 10. b4 {[%emt 0:07:53] Against c5} c6 {[%emt 0:03:44]} 11. O-O {[%emt 0:02:37]} a5 {[%emt 0:01:27]} 12. Rb1 {[%emt 0:04:43]} axb4 {[%emt 0:03:40]} 13. axb4 {[%emt 0:00:06]} O-O {[%emt 0:00:03]} 14. e4 {[%emt 0:09:11][%cal Be3e4,Be4e5][%mdl 32]} Nb6 {[%emt 0:07:42]} 15. e5 {[%emt 0:04:35]} Nfd5 {[%emt 0:00:44]} 16. Nce4 {[%emt 0:06:47]} ({But not} 16. Qh5 f5 17. exf6 Nxf6 $11) 16... Re8 {[%emt 0:08:41]} ({Of course not} 16... Nxb4 17. Nf6+ Bxf6 18. exf6 Nxd3 19. fxg7 Kxg7 20. Qxd3 $15) 17. Nh5 {[%emt 0:15:33][%cal Oh5g7]} g6 {[%emt 0:09:57]} 18. Qf3 {[%emt 0:03:35][%cal Oc1h6] White is more active.} Nd7 {[%emt 0:11:23]} ({Resist} 18... gxh5 19. Bh6 Bf8 20. Bg5 $16) 19. Bh6 {[%emt 0:02:15][%cal Od3c2]} Qb6 {[%emt 0:14:08]} 20. Nc5 {[%emt 0:04:45][%cal Od3e4]} (20. Be3 $5) 20... Ra3 {[%emt 0:01:01][%cal Rd7c5]} 21. Nf4 {[%emt 0:10:46]} Qb8 {[%emt 0:11:27]} (21... Nxc5 $11 22. bxc5 Qa7) 22. Nxd5 $14 {[%emt 0:00:37] Really sharp!} exd5 {[%emt 0:01:14]} 23. Bc1 {[%emt 0:02:56]} (23. Ra1 $1 $14 Rxa1 24. Rxa1) 23... Nxc5 $11 {[%emt 0:00:28]} 24. Bxa3 {[%emt 0:01:48]} Nxd3 {[%emt 0:00:04][%mdl 64] [#] Remove Defender} 25. Qxd3 {[%emt 0:00:07] aiming for Qc3.} Bf5 {[%emt 0:00:02]} 26. Qc3 {[%emt 0:00:30]} Bxb1 {[%emt 0:00:05]} 27. Rxb1 {[%emt 0:00:07]} Qb7 {[%emt 0:01:05]} 28. Bc1 {[%emt 0:07:40]} Ra8 {[%emt 0:00:19]} 29. Be3 {[%emt 0:00:56]} Ra4 {[%emt 0:00:37]} 30. Kf1 {[%emt 0:01:14]} h5 {[%emt 0:07:14]} 31. Rc1 {[%emt 0:00:42]} Ra6 {[%emt 0:00:04]} 32. Qd2 {[%emt 0:00:54]} Qa7 {[%emt 0:04:24]} 33. g3 {[%emt 0:01:06]} Ra1 {[%emt 0:00:27]} 34. Rxa1 {[%emt 0:01:02]} Qxa1+ {[%emt 0:00:04][%mdl 4096] Endgame KQB-KQB} 35. Kg2 {[%emt 0:00:09]} Qa7 {[%emt 0:02:38]} 36. h4 {[%emt 0:00:41]} Bf8 {[%emt 0:01:18]} 37. Qc3 {[%emt 0:00:22]} Qd7 {[%emt 0:00:06]} 38. f3 {[%emt 0:00:56]} Qe6 {[%emt 0:00:13]} 39. Bg5 {[%emt 0:00:52]} Qd7 {[%emt 0:01:11]} 40. Be3 {[%emt 0:00:13]} Qb7 {[%emt 0:03:05]} 41. Bf2 {[%emt 0:32:45]} Be7 {[%emt 0:30:32]} 42. Qa3 {[%emt 0:00:00]} Kf8 {[%emt 0:00:00]} 43. Be3 {[%emt 0:00:00]} Ke8 {[%emt 0:00:00]} 44. Bg5 {[%emt 0:00:00]} Bf8 {[%emt 0:00:00]} 45. Qa5 {[%emt 0:00:00][%csl Gg5][%cal Ra5d8] [#]} Be7 {[%emt 0:00:00] Prevents Qd8+.} 46. Bxe7 {[%emt 0:00:00]} Kxe7 {[%emt 0:00:00] KQ-KQ} 47. Qa3 {[%emt 0:00:00]} Kf8 {[%emt 0:00:00]} 48. g4 {[%emt 0:00:00]} Qd7 $2 {[%emt 0:00:00]} (48... hxg4 $11 {and Black is okay.} 49. fxg4 Qd7) 49. Kg3 $2 {[%emt 0:00:00]} ({White must play} 49. gxh5 $18 {Qa8+ is the strong threat.} gxh5 50. Qc1) 49... hxg4 {[%emt 0:00:00]} 50. fxg4 {[%emt 0:00:00]} Kg7 {[%emt 0:00:00]} 51. Qc3 {[%emt 0:00:00]} Qe7 {[%emt 0:00:00]} 52. Kh3 {[%emt 0:00:00]} Qa7 {[%emt 0:00:00] The position is equal.} 53. Kg3 {[%emt 0:00:00]} Qa4 {[%emt 0:00:00]} 54. h5 {[%emt 0:00:00]} Qd1 {[%emt 0:00:00]} 55. hxg6 {[%emt 0:00:00]} Qg1+ {[%emt 0:00:00]} 56. Kh3 {[%emt 0:00:00] Black must now prevent Qf3.} fxg6 {[%emt 0:00:00]} 57. Qxc6 {[%emt 0:00:00]} Qf1+ {[%emt 0:01:46]} 58. Kg3 {[%emt 0:00:00] Threatens to win with Qd7+.} Qg1+ {[%emt 0:00:51]} 59. Kh3 {[%emt 0:00:00] Weighted Error Value: White=0.10 (very precise) /Black=0.13 (very precise)} 1/2-1/2

[Event "FIDE WSCC 65 2022"]
[Site "Assisi"]
[Date "2022.11.18"]
[Round "4.9"]
[White "Jurek, Josef"]
[Black "Cocozza, Mario"]
[Result "1/2-1/2"]
[ECO "D73"]
[WhiteElo "2211"]
[BlackElo "2298"]
[Annotator "TA"]
[PlyCount "61"]
[EventDate "2022.11.14"]
[EventType "swiss"]
[EventCountry "ITA"]
[SourceTitle "playchess.com"]
[Source "ChessBase"]
[SourceQuality "1"]
[TimeControl "40/5400+30:1800+30"]

{[%evp 11,61,12,20,16,39,24,41,37,31,31,35,16,20,18,18,10,6,0,0,0,9,0,0,0,0,0,0,0,0,0,5,5,8,16,11,12,20,22,25,27,33,28,33,27,33,23,29,18,33,14,18,5]} 1. Nf3 {[%emt 0:00:09]} Nf6 {[%emt 0:00:10]} 2. c4 {[%emt 0:00:15]} g6 {[%emt 0:00:25]} 3. d4 {[%emt 0:00:16]} Bg7 {[%emt 0:00:43]} 4. g3 {[%emt 0:00:16]} c6 {[%emt 0:00:45]} 5. Bg2 {[%emt 0:01:03]} d5 {[%emt 0:01:15]} 6. cxd5 {[%emt 0:00:55]} cxd5 {[%emt 0:00:09]} 7. Ne5 {[%emt 0:00:37] D73: Fianchetto Grünfeld: 5 Nf3 .} Ng4 {[%emt 0:04:47]} 8. Qa4+ {[%emt 0:02:22]} Bd7 {[%emt 0:01:13]} 9. Nxd7 {[%emt 0:00:43] White is slightly better.} Qxd7 {[%emt 0:00:31]} 10. Qxd7+ {[%emt 0:03:06]} Nxd7 {[%emt 0:00:11]} 11. h3 {[%emt 0:10:03]} Ngf6 {[%emt 0:01:01]} 12. Nc3 {[%emt 0:00:49]} e6 {[%emt 0:14:51]} 13. O-O {[%emt 0:01:14]} O-O {[%emt 0:00:38]} 14. Bf4 {[%emt 0:05:05]} Rfc8 {[%emt 0:08:30] [#]} 15. Rac1 $146 {[%emt 0:04:18]} ({Predecessor:} 15. g4 a6 16. a4 Rc4 17. Rfd1 Rac8 18. a5 Rb4 19. Rd2 Ne8 20. Bxd5 Bxd4 21. Bf3 {½-½ (66) Lindemann,S (2335)-Kargoll,B (2264) Germany 2000}) 15... a6 {[%emt 0:10:48]} 16. Rfd1 {[%emt 0:04:00]} Nb6 {[%emt 0:08:25]} 17. b3 {[%emt 0:11:10]} Bf8 {[%emt 0:05:19]} 18. Nb1 {[%emt 0:01:09] Inhibits Ba3.} Ne8 {[%emt 0:06:04][%cal Bf6e8,Be8d6,Bd6f5][%mdl 32]} 19. Rxc8 {[%emt 0:04:11]} Rxc8 {[%emt 0:00:10]} 20. Rc1 {[%emt 0:00:21] Inhibits Rc2.} Rxc1+ {[%emt 0:10:01]} 21. Bxc1 {[%emt 0:00:22]} Nd6 {[%emt 0:01:00]} 22. Nc3 {[%emt 0:02:36]} Nf5 {[%emt 0:13:50]} 23. e3 {[%emt 0:04:38]} Bb4 {[%emt 0:00:39]} 24. Ne2 {[%emt 0:00:35]} Kf8 {[%emt 0:00:40]} 25. Nf4 {[%emt 0:01:03]} Nd7 {[%emt 0:02:13]} 26. Nd3 {[%emt 0:07:50]} Bd6 {[%emt 0:00:05]} 27. Bd2 {[%emt 0:01:37]} Ke8 {[%emt 0:03:43]} 28. Ba5 {[%emt 0:05:36]} b6 {[%emt 0:01:11]} 29. Bc3 {[%emt 0:01:01]} a5 {[%emt 0:01:22]} 30. Nb2 {[%emt 0:03:57]} Kd8 {[%emt 0:01:02]} 31. Kf1 {[%emt 0:24:43] Weighted Error Value: White=0.04 (flawless) /Black=0.05 (flawless)} 1/2-1/2

[Event "FIDE WSCC 65 2022"]
[Site "Assisi"]
[Date "2022.11.18"]
[Round "4.10"]
[White "Kiefer, Gerhard"]
[Black "Thuesen, Mogens"]
[Result "1/2-1/2"]
[ECO "B33"]
[WhiteElo "2260"]
[BlackElo "2115"]
[Annotator "TA"]
[PlyCount "64"]
[EventDate "2022.11.14"]
[EventType "swiss"]
[EventCountry "ITA"]
[SourceTitle "playchess.com"]
[Source "ChessBase"]
[SourceQuality "1"]
[TimeControl "40/5400+30:1800+30"]

{[%evp 37,64,18,58,0,0,0,0,0,0,0,0,0,0,0,0,0,0,0,0,0,0,-38,0,0,0,0,0,0,0]} 1. e4 {[%emt 1:31:00]} c5 {[%emt 1:31:00]} 2. Nf3 {[%emt 0:00:00][%cal Bg1f3,Bf3d4,Bd4b5,Bb5a3,Ba3c2,Bc2e3][%mdl 32]} e6 {[%emt 0:00:00]} 3. d4 {[%emt 0:00:00]} cxd4 {[%emt 0:00:00]} 4. Nxd4 {[%emt 0:00:00]} Nf6 {[%emt 0:00:00]} 5. Nc3 {[%emt 0:00:00]} Nc6 {[%emt 0:00:00]} 6. Ndb5 {[%emt 0:00:00]} d6 {[%emt 0:00:00]} 7. Bf4 {[%emt 0:00:00]} e5 {[%emt 0:00:00]} 8. Bg5 {[%emt 0:00:00]} a6 {[%emt 0:00:00]} 9. Na3 {[%emt 0:00:00]} b5 {[%emt 0:00:00]} 10. Bxf6 {[%emt 0:00:00]} gxf6 {[%emt 0:00:00]} 11. Nd5 {[%emt 0:00:00]} f5 {[%emt 0:00:00]} 12. exf5 {[%emt 0:00:00]} Bxf5 {[%emt 0:00:00]} 13. c3 {[%emt 0:06:00]} Bg7 {[%emt 0:00:00]} 14. Nc2 {[%emt 0:00:00]} O-O {[%emt 0:00:00]} 15. Nce3 {[%emt 0:00:00]} Be6 {[%emt 0:00:00]} 16. Bd3 {[%emt 0:00:00]} f5 {[%emt 0:00:00]} 17. Qh5 {[%emt 0:00:00]} e4 {[%emt 0:00:00]} 18. Bc2 {[%emt 0:00:00]} Ne7 {[%emt 0:00:00]} 19. Rd1 {[%emt 0:00:00]} Ng6 {[%emt 0:00:00]} 20. O-O {[%emt 0:00:00] B33: Sicilian: Pelikan and Sveshnikov Variations.} (20. g4 $1 $14 Nh4 21. gxf5 Bxf5 22. Nf4) 20... f4 $11 {[%emt 0:00:00]} 21. Ng4 {[%emt 0:00:00] Pair of Knights!} Rf5 {[%emt 0:00:00]} 22. Nh6+ {[%emt 0:00:00]} Bxh6 {[%emt 0:00:00]} 23. Qxh6 {[%emt 0:00:00]} Rxd5 {[%emt 0:00:00]} ({Resist} 23... Bxd5 {[#]} 24. Rxd5 $1 {[%mdl 512]} Rxd5 25. Bb3 $18) 24. Bxe4 {[%emt 0:00:00]} Rxd1 {[%emt 0:00:00]} 25. Rxd1 {[%emt 0:00:00]} Qf8 {[%emt 0:00:00] [#]} ({Don't do} 25... Bxa2 26. Bxa8 (26. Bxg6 hxg6 27. Qxg6+ Kf8 $16) 26... Qxa8 27. Rxd6 $16) 26. Qh5 $146 {[%emt 0:00:00]} ({Predecessor:} 26. Qxf8+ Rxf8 27. Rxd6 Bxa2 28. Bxg6 hxg6 29. Rxg6+ Kf7 30. Rxa6 Rd8 31. Kf1 Bc4+ 32. Ke1 {0-1 (56) Idrizaj,A-Wafzig,P (2118) Hessen 1999}) 26... Re8 {[%emt 0:00:00] [#] And now ...Kg7 would win.} 27. Bxg6 {[%emt 0:00:00]} hxg6 {[%emt 0:00:00]} 28. Qxg6+ {[%emt 0:00:00]} Kh8 {[%emt 0:00:00]} 29. Rxd6 {[%emt 0:00:00]} Qxd6 {[%emt 0:00:00][%cal Rd6d1]} 30. Qh6+ $1 {[%emt 0:00:00] The position is equal.} Kg8 {[%emt 0:00:00][%cal Rd6d1]} 31. Qg6+ {[%emt 0:00:00]} Kf8 {[%emt 0:00:00][%cal Rd6d1]} 32. Qf6+ {[%emt 0:00:00]} Kg8 {[%emt 0:00:00] A balanced but interesting game.  Weighted Error Value: White=0.13 (very precise) /Black=0.14 (very precise)} 1/2-1/2